Cogmind - Beta 12 @@@ ROGUE MODE // 2023.12.17 @ 15:10:54 Player: Kel Result: Destroyed by H-55 Commando with Gauss Rifle Performance ------------- Evolutions (2) 1000 Regions Visited (3) 600 Robots Destroyed (21) 105 Value Destroyed (530) 530 Prototype IDs (0) 0 Alien Tech Used (0) 0 Bonus (11) 11 TOTAL SCORE: 2246 Bonus ------- High Alert Combat Kills 11 Cogmind --------- Core Integrity 0/550 Matter 300/300 Energy 100/100 System Corruption 1% Temperature Cool (0) Movement Core (50) Location -8/Materials Parts ------- > --- POWER (1) -------- (None) > --- PROPULSION (4) --- (None) > --- UTILITY (4) ------ ECM Suite > --- WEAPON (2) ------- (None) > --- INVENTORY (5) ---- Deuterium Engine Light Nuclear Core ECM Suite Hammer Maul Peak State ------------ > --- POWER ------------ Light Deuterium Engine > --- PROPULSION ------- Airjet Flight Unit Flight Unit Cesium-ion Thruster > --- UTILITY ---------- Small Storage Unit Seismic Detector ECM Suite > --- WEAPON ----------- Maul > --- INVENTORY -------- Light Ion Engine Light Ion Engine Deuterium Engine Hover Unit Hover Unit ECM Suite Hammer [Rating: 16] Favorites ----------- Power Light Ion Engine Engine Light Ion Engine Propulsion Flight Unit Wheel Compact Wheel Hover Unit Hover Unit Flight Unit Flight Unit Utility Small Storage Unit Device Sensor Array Storage Small Storage Unit Weapon Small Laser Energy Gun Small Laser Impact Weapon Maul Build | -11 -10 -9 -8 ------- Run | Jun Mat Mat Mat Slots Evolved 4 | . . 2 2 Power . | . . . . Propulsion 2 | . . 1 1 Utility 2 | . . 1 1 Weapon . | . . . . Parts Attached 31 | 6 7 4 14 Power 5 | 1 1 . 3 Engine 5 | 1 1 . 3 Core . | . . . . Reactor . | . . . . Propulsion 17 | 2 4 3 8 Treads . | . . . . Leg . | . . . . Wheel 2 | 2 . . . Hover 7 | . 4 . 3 Flight 8 | . . 3 5 Utility 5 | 1 1 1 2 Device 3 | . 1 1 1 Storage 2 | 1 . . 1 Processor . | . . . . Hackware . | . . . . Protection . | . . . . Artifact . | . . . . Weapon 4 | 2 1 . 1 Energy Gun 2 | 2 . . . Energy Cannon . | . . . . Ballistic Gun . | . . . . Ballistic Cannon . | . . . . Launcher . | . . . . Special Weapon . | . . . . Impact Weapon 2 | . 1 . 1 Slashing Weapon . | . . . . Piercing Weapon . | . . . . Special Melee Weapon . | . . . . Unidentified Prototypes . | . . . . Parts Lost 14 | . . . 14 Power 3 | . . . 3 Propulsion 8 | . . . 8 Utility 3 | . . . 3 Weapon . | . . . . Highest Loss Streak 9 | . . . 9 To Critical Strikes . | . . . . Average Slot Usage (%) 83 | . 96 88 71 Engine 10 | . 14 11 7 Wheel 4 | . 10 . . Hover 11 | . 14 . 12 Flight 11 | . . 33 16 Device 16 | . 13 22 17 Storage 11 | . 14 11 8 Energy Gun 11 | . 27 . . Impact Weapon 5 | . . 11 8 Naked Turns . | . . . . Heaviest Build 16 | 11 12 12 16 Greatest Support 32 | 32 32 12 20 Greatest Overweight (x) 4 | 3 . . 4 Average Overweight (x) . | 1 . . . Largest Inventory Capacity 8 | 8 8 8 8 Average Capacity 7 | 7 8 8 7 Most Carried 8 | 6 8 8 8 Average Carried 6 | 4 7 6 6 Final Capacity 8 | 8 8 8 5 Final Carried 8 | 6 8 7 5 Class Distribution -------------------- 79% | Mutant 14% | Scavenger-Mutant 5% | Scavenger-Sprinter Dominant Class ---------------- Mutant | -10/Materials Scavenger-Mutant | -9/Materials Mutant | -8/Materials Resources | -11 -10 -9 -8 ----------- Run | Jun Mat Mat Mat Matter Collected 495 | 243 57 . 195 Remotely . | . . . . Salvage Created 604 | . 96 . 508 Parts 28 | . 13 . 15 Haulers Intercepted . | . . . . Recyclers Shooed . | . . . . Parts Field Recycled . | . . . . Retrieved Matter . | . . . . Parts Self-Destructed . | . . . . Prevented . | . . . . Kills | -11 -10 -9 -8 ------- Run | Jun Mat Mat Mat Combat Hostiles Destroyed 18 | . 6 . 12 Melee 6 | . . . 6 Guns 6 | . 6 . . Classes Destroyed 7 | . 1 . 6 Builder 1 | . . . 1 Mechanic 1 | . . . 1 Watcher 1 | . . . 1 Swarmer 8 | . 6 . 2 Cutter 2 | . . . 2 Grunt 5 | . . . 5 Sentry 3 | . . . 3 Best Kill Streak 8 | . 6 . 8 Combat Bots Only 6 | . 6 . 5 Max Kills in Single Turn 2 | . 2 . 1 Gunslinging 1 | . 1 . . Exploded . | . . . . Melee 1 | . . . 1 Uniques/NPCs Destroyed . | . . . . Combat | -11 -10 -9 -8 -------- Run | Jun Mat Mat Mat Damage Taken 1478 | . 128 42 1308 Core 645 | . 52 27 566 Absorbed by Shields . | . . . . Regen/Repaired (Parts) 35 | . 35 . . Core Remaining (%) 90 | 100 79 93 . Volleys Fired 7 | . 7 . . Largest 2 | . 2 . . Hottest 90 | . 90 . . Shots Fired 14 | . 14 . . Gun 14 | . 14 . . Cannon . | . . . . Launcher . | . . . . Special . | . . . . Kinetic . | . . . . Thermal 14 | . 14 . . Explosive . | . . . . Electromagnetic . | . . . . Robot Hit Streak 5 | . 5 . . Robot Miss Streak 1 | . 1 . . Penetration Max . | . . . . Secondary Targets 4 | . 4 . . Max Gunslinging Chain 1 | . 1 . . Shots Hit Robots 40 | . 10 . 30 Core Hits 10 | . 6 . 4 Critical Kills 1 | . . . 1 Critical Parts Destroyed 10 | . . . 10 Critical Strikes 12 | . 1 . 11 Burn 1 | . 1 . . Smash 11 | . . . 11 Melee Attacks 36 | . . . 36 Impact 36 | . . . 36 Slashing . | . . . . Piercing . | . . . . Sneak Attacks 3 | . . . 3 Combat Hostiles 1 | . . . 1 Follow-up Attacks . | . . . . Damage Inflicted 1332 | . 120 . 1212 Guns 120 | . 120 . . Cannons . | . . . . Explosions . | . . . . Melee 1212 | . . . 1212 Ramming . | . . . . Kinetic . | . . . . Thermal 120 | . 120 . . Explosive . | . . . . Electromagnetic . | . . . . Impact 1212 | . . . 1212 Slashing . | . . . . Piercing . | . . . . Highest Corruption 1 | . . . 1 Average Corruption 1 | . . . 1 Corruption Purged . | . . . . Corruption Blocked . | . . . . Overload Shots . | . . . . Overflow Damage 528 | . . . 528 Projectiles . | . . . . Explosions . | . . . . Melee 528 | . . . 528 Knockbacks 9 | . . . 9 Impact 7 | . . . 7 Kinetic . | . . . . Secondary 2 | . . . 2 Self-Inflicted Damage . | . . . . Shots . | . . . . Rammed . | . . . . Targets Rammed . | . . . . Kicked . | . . . . Crushed . | . . . . Highest Temperature 252 | . 252 10 21 Average Temperature 107 | . 126 10 6 Received Heat Transfer 540 | . . 36 504 Siege Activations . | . . . . Robots Corrupted . | . . . . Combat Hostiles . | . . . . Parts Fried 10 | . . . 10 Impact Corruptions 21 | . . . 21 Robots Melted . | . . . . Combat Hostiles . | . . . . Parts Melted 1 | . 1 . . Heat Transferred 408 | . 408 . . Parts Sabotaged . | . . . . Parts Stolen . | . . . . Parts Stripped . | . . . . Power Chain Reactions . | . . . . Missiles Intercepted . | . . . . Alert | -11 -10 -9 -8 ------- Run | Jun Mat Mat Mat Peak Influence 439 | . 193 202 439 Initial 85 | . . 81 85 Average 148 | . 85 115 245 Maximum Alert Level 2 | . . 1 2 Low Security (%) 68 | 100 100 96 27 Level 1 27 | . . 3 63 Level 2 3 | . . . 8 Level 3 . | . . . . Level 4 . | . . . . Level 5 . | . . . . High Security . | . . . . Max Security . | . . . . Squads Dispatched 7 | . 1 . 6 Investigation 1 | . . . 1 Extermination . | . . . . Reinforcement 5 | . 1 . 4 Assault . | . . . . Garrison 1 | . . . 1 Intercept . | . . . . Searches Triggered . | . . . . Construction Impeded . | . . . . Haulers Reinforced . | . . . . Active Scanning Responses . | . . . . Cargo Convoy Interrupts . | . . . . Stealth | -11 -10 -9 -8 --------- Run | Jun Mat Mat Mat Distress Signals 6 | . . 1 5 Communications Jammed . | . . . . Distress Signals . | . . . . Times Spotted 45 | . 10 3 32 Peak Tracking Total 11 | . 7 5 11 Tactical Retreats 3 | . . 1 2 Traps | -11 -10 -9 -8 ------- Run | Jun Mat Mat Mat Traps Triggered 1 | . . . 1 Indirectly . | . . . . Trap Hack Attempts . | . . . . Triggered . | . . . . Disarmed . | . . . . Reprogrammed . | . . . . Reused . | . . . . Traps Extracted . | . . . . Installed . | . . . . Triggered . | . . . . Machines | -11 -10 -9 -8 ---------- Run | Jun Mat Mat Mat Machines Disabled . | . . . . Max in Single Turn . | . . . . Machines Repaired . | . . . . Machines Sabotaged . | . . . . Overloaded Fab Kills . | . . . . Hacking | -11 -10 -9 -8 --------- Run | Jun Mat Mat Mat Machines Accessed 10 | . 4 4 2 Terminals 8 | . 2 4 2 Fabricators . | . . . . Repair Stations 1 | . 1 . . Recycling Units 1 | . 1 . . Scanalyzers . | . . . . Garrison Access . | . . . . Total Hacks 37 | . 12 16 9 Successful 21 | . 8 8 5 Failed 16 | . 4 8 4 Catastrophic 3 | . 1 1 1 Database Lockouts . | . . . . Manual 32 | . 7 16 9 Terminals 31 | . 6 16 9 Fabricators . | . . . . Repair Stations 4 | . 4 . . Recycling Units 2 | . 2 . . Scanalyzers . | . . . . Garrison Access . | . . . . Terminal Hacks 2 | . . 1 1 Zone Layout 2 | . . 1 1 Fabricator Hacks . | . . . . Repair Station Hacks 4 | . 4 . . Scan Component 2 | . 2 . . Repair 2 | . 2 . . Recycling Unit Hacks 1 | . 1 . . Report Inventory 1 | . 1 . . Scanalyzer . | . . . . Garrison Access Hacks . | . . . . Unauthorized Hacks 14 | . 3 7 4 Terminals 14 | . 3 7 4 Assimilate 6 | . 1 3 2 Botnet 8 | . 2 4 2 Fabricators . | . . . . Repair Stations . | . . . . Recycling Units . | . . . . Scanalyzers . | . . . . Garrison Access . | . . . . Data Cores Recovered . | . . . . Used . | . . . . Hacking Detections 8 | . 2 4 2 Full Trace Events 1 | . . . 1 Feedback Events . | . . . . Feedback Blocked . | . . . . Robot Schematics Acquired . | . . . . Robots Built . | . . . . Authchips . | . . . . Time . | . . . . Total Robot Build Rating . | . . . . Part Schematics Acquired . | . . . . Parts Built . | . . . . Authchips . | . . . . Time . | . . . . Total Part Build Rating . | . . . . Parts Repaired 2 | . 2 . . Time 52 | . 52 . . Parts Recycled . | . . . . Recycled Matter . | . . . . Retrieved Matter . | . . . . Retrieved Components . | . . . . Parts Scanalyzed . | . . . . Part Schematics Acquired . | . . . . Parts Damaged . | . . . . Bothacking | -11 -10 -9 -8 ------------ Run | Jun Mat Mat Mat Used RIF Installer . | . . . . Robots Hacked . | . . . . Non-combat . | . . . . Combat . | . . . . Robot Hacks Applied . | . . . . Relay Couplers Released . | . . . . Fabnet Peak Effective % . | . . . . Robots Rewired . | . . . . Allies Hacked . | . . . . Hacks Repelled . | . . . . Allies | -11 -10 -9 -8 -------- Run | Jun Mat Mat Mat Total Allies . | . . . . Largest Group . | . . . . Highest-Rated Group . | . . . . Highest-Rated Ally . | . . . . Total Orders . | . . . . Ally Attacks . | . . . . Total Damage . | . . . . Kills . | . . . . Allies Corrupted . | . . . . Allies Melted . | . . . . Intel | -11 -10 -9 -8 ------- Run | Jun Mat Mat Mat Robot Analysis Total . | . . . . Derelict Logs Recovered . | . . . . Drone Launches . | . . . . Drone Recoveries . | . . . . Exploration | -11 -10 -9 -8 ------------- Run | Jun Mat Mat Mat Turns Passed 862 | 84 316 94 368 Spaces Moved 889 | 56 299 246 288 Core 82 | 35 . . 47 Treads . | . . . . Legs . | . . . . Wheels 132 | 21 111 . . Hover 279 | . 188 . 91 Flight 396 | . . 246 150 Fastest Speed 29 | 50 56 34 29 Average Speed 58 | 125 72 34 51 Slowest Speed 280 | 200 100 34 280 Overloaded Moves . | . . . . Propulsion Burnouts . | . . . . Robots Hopped 4 | . . 4 . Cave-ins Triggered . | . . . . Exploration Rate (%) 29 | 4 51 31 30 Regions Visited 3 Branch Regions . Pre-discovered Areas . | . . . . Known Exits Taken . | . . . . Unknown Exits Taken 3 | 1 1 1 . Scrap Searched . | . . . . Spaces Dug . | . . . . Terrain Destroyed . | . . . . Melee . | . . . . Projectile . | . . . . AOE . | . . . . Terrain Rammed . | . . . . Walls Destroyed . | . . . . Machines Disabled . | . . . . Actions | -11 -10 -9 -8 --------- Run | Jun Mat Mat Mat Total 1141 | 67 385 252 437 Wait 146 | . 55 . 91 Move 878 | 55 298 237 288 Hop 4 | . . 4 . Pick Up 22 | 6 9 3 4 Fast Attach 12 | 6 4 . 2 Attach 12 | . . 2 10 Detach 4 | . . 1 3 Swap 7 | . 3 2 2 Drop 13 | . 9 3 1 Fire 7 | . 7 . . Melee 36 | . . . 36 Ram . | . . . . Kick . | . . . . Crush . | . . . . Escape Stasis . | . . . . Rewire . | . . . . Trap . | . . . . Miscellaneous . | . . . . Route ------- -11/Junkyard -10/Materials -9/Materials -8/Materials (discovered 1 exit: [*Fac]) History --------- Turn | Location | Event 33 | -11/Junkyard | Discovered new exit (range 14) 85 | -11/Junkyard | Entered Materials 318 | -10/Materials | Build established: Mutant 345 | -10/Materials | Repaired Hover Unit 372 | -10/Materials | Repaired Hover Unit 379 | -10/Materials | Discovered new exit (range 11) 401 | -10/Materials | Entered another Materials area 401 | -9/Materials | Evolved 2 slots: Propulsion x1, Utility x1 489 | -9/Materials | Discovered new exit (range 16) 495 | -9/Materials | Entered another Materials area 495 | -8/Materials | Evolved 2 slots: Propulsion x1, Utility x1 605 | -8/Materials | Lost 3 parts (2n1u) 787 | -8/Materials | Garrison activated, responded to threat 836 | -8/Materials | Core integrity fell below 50% 847 | -8/Materials | Core integrity fell below 20% 862 | -8/Materials | Discovered new exit (range 7) 863 | -8/Materials | Destroyed by H-55 Commando with Gauss Rifle Last Messages --------------- 00830_ U-05 Engineer lays Concrete. 00831_ R-06 Scavenger collects Wheel. 00834_ Penetrated by Slug. 00834_ W-25 Informer sends out distress signal. 00835_ U-05 Engineer destroyed. 00837_ Penetrated by Slug. 00837_ Flight Unit destroyed. 00838_ Critical hit (Burn: +37). 00840_ Penetrated by Slug. 00840_ Lgt. Ion Engine destroyed. 00840_ Sml. Storage Unit destroyed. 00841_ Penetrated by Slug. 00843_ Slug penetrates Wall. 00847_ Penetrated by Slug. 00849_ O-16 Technician sends out distress signal. 00849_ O-16 Technician: "IFF HANDSHAKE FAILED. SECURING TERMINAL." 00856_ ALERT: Hostiles spotted, dispatching reinforcements to Terminal M004. 00860_ Penetrated by Slug. 00862_ EXIT=FOUND Map ----- +----------------------------------------------------+ | ###### ????????????????????????????????????? | | ?????# ????????????????????????????????????? | | ?????##????????????????????????????????????? | | ###########????????????????????????????????? | | ???????????????????????????????? | | ???????????????????????????????? | | #####?????????????????????????????????? | | " ##????????????????????????????????????? | | " ##????????????????????????????????????? | | " #????????????????????????????????????? | | +????????????????????????????????????? | | #????????????????????????????????????? | | #??????????????????????#?????????????? | | ### #????????????????????? #?????????????? | | #?? #????????????????????? #?????????????? | | #????#???????????????????? #?????????????? | | #????????????????????????? #?????????????? | | #????????????????????????? #?????????????? | | #????????????????????????? #?????????????? | | #????????????????????????? #?????????????? | | #??????????????????????### ####??????????? | | #??????????????????????# #??????????? | | ##??????????????????????+ < ???????????? | | #???????????????????????# ?????????????? | | #???????????????????????# h#??????????????? | | #???????????????????????#@ #??????????????? | | #???????????????????????# #??????????????? | | #???????????????????????# +??????????????? | | ????????????????????????# #??????????????? | | ?????? ################## #??????????????? | | ## #??????????????? | | #??????????????? | | ## #??????????????? | | #????? ########### #??????????????? | | #????????????????# +??????????????? | | #????????????????# #??????????????? | | #????????????????# #??????????????? | | #????????? #??????????????? | | #??????????######## ##### #??????????????? | | #?????????????????# ????# #??????????????? | | #?????????????????#?????# #??????????????? | | ????????????????????????# #??????????????? | | ????????????????????????# #??????????????? | | #???????????????????????# #??????????????? | | #???########????????????# #??????????????? | | #???? #???????"????# #??????????????? | | #????[ """ #??????""""??# #??????????????? | | #????? """ ???# """"""" # #??????????????? | | #????? """ ???# + #??????????????? | | #?????? ????# # #??????????????? | +----------------------------------------------------+ Best States ------------- Heat Dissipation 31 Energy Generation 14 Energy Capacity 140 Matter Stores 300 Matter Capacity 300 Sight Range 16 Robot Scan Range 14 Terrain Scan Density 10 ECM Strength 1 Evasion (%) 63 Item Schematics ----------------- None Robot Schematics ------------------ None Fabricated ------------ Nothing Alien Tech Used ----------------- None Achievements -------------- None Challenges ------------ None Game ------ Seed HackingSniperThermoblaster Manual? 0 Play Time 00:17:14 Cumulative 23.3 hours Start 2023.12.17 @ 14:54:57 End 2023.12.17 @ 15:10:54 Sessions 1 Manual Loads 0 Difficulty Rogue Special Mode None Game No. 45 Rogue 45 Adventurer 0 Explorer 0 Win Type - Total 0 Types 0/0/0/0/0/0/0/0/0 Lore% 22 Gallery% 26 Achievement% 23 Wizard Run 0 Options --------- ASCII 0 Keyboard 1 Movement Numpad Keybinds 0 Fullscreen 1 Font 18/Terminus Map View 76x50 Tactical HUD 1 Map Filters NONE Filters NONE Steam 1 RUN: b2f8d4e6-aa3c-4055-a13f-031db9685752